bitfinex-derivatives/quotes_BTCF0:USTF0_20250514
["timestamp","ask_amount","ask_price","bid_price","bid_amount"]
[1747184211908,0.04306982,103870.0,103860.0,2.81521448]
[1747184214804,0.04306982,103870.0,103860.0,3.22771448]
[1747184215007,0.04306982,103870.0,103860.0,3.27547782]
[1747184215510,0.0332,103870.0,103860.0,3.27547782]
[1747184215810,0.2245218,103880.0,103870.0,0.1925387]
[1747184216010,0.2546218,103880.0,103870.0,0.34985839]
[1747184216204,0.2546218,103880.0,103870.0,0.51185839]
[1747184216403,0.2546218,103880.0,103870.0,2.01185839]
[1747184216604,0.26425923,103880.0,103870.0,2.01185839]
[1747184217000,0.03973743,103880.0,103870.0,2.01185839]
[1747184217709,0.03973743,103880.0,103870.0,2.42435839]
[1747184218105,0.0301,103880.0,103870.0,2.60521839]
[1747184218304,1.07675144,103910.0,103900.0,0.1924831]
[1747184218499,1.0862204,103910.0,103900.0,0.1924831]
[1747184218910,1.0862204,103910.0,103900.0,1.6924831]
[1747184219106,1.09570055,103910.0,103900.0,1.6924831]
[1747184219516,1.15740055,103910.0,103900.0,1.6924831]
[1747184222708,1.15740055,103910.0,103900.0,0.1924831]
[1747184224215,0.79660055,103910.0,103900.0,0.1924831]
[1747184224413,1.15740055,103910.0,103900.0,0.1924831]
[1747184226515,0.86252086,103910.0,103900.0,0.1924831]
[1747184226714,0.67004436,103910.0,103900.0,0.34992248]
[1747184226909,0.67004436,103910.0,103900.0,0.28760279]
[1747184227104,0.46278015,103910.0,103900.0,0.51200279]
[1747184227309,0.26364475,103910.0,103900.0,0.51200279]
[1747184228319,0.26364475,103910.0,103900.0,0.74440279]
[1747184229115,0.07118015,103910.0,103900.0,0.74440279]
[1747184229311,0.04038015,103910.0,103900.0,0.74440279]
[1747184229513,0.07288015,103910.0,103900.0,0.74440279]
[1747184229718,0.26534475,103910.0,103900.0,0.6820831]
[1747184230119,0.26534475,103910.0,103900.0,0.74440279]
[1747184230619,0.29654475,103910.0,103900.0,0.74440279]
[1747184232018,0.0309,103910.0,103900.0,1.21922248]
[1747184232205,0.002,103920.0,103910.0,0.1924646]
[1747184232411,0.0312,103930.0,103920.0,0.1924461]
[1747184232615,0.0312,103930.0,103920.0,2.11210548]
[1747184232821,0.0312,103930.0,103920.0,2.47290548]
[1747184233322,0.0312,103930.0,103920.0,2.60508104]
[1747184235719,0.0312,103930.0,103920.0,3.01758104]
[1747184236320,0.001,103940.0,103930.0,0.1924275]
[1747184236525,0.14855714,103960.0,103950.0,0.1923905]
[1747184236709,0.15836517,103960.0,103950.0,0.28720544]
[1747184236915,0.15836517,103960.0,103950.0,0.67820544]
[1747184237223,0.15836517,103960.0,103950.0,0.84020544]
[1747184237419,0.14855714,103960.0,103950.0,0.84020544]
[1747184237618,0.17935714,103960.0,103950.0,1.23978038]
[1747184238024,0.0328,103960.0,103950.0,2.73978038]
[1747184238230,0.0328,103960.0,103950.0,2.75412849]
[1747184239724,0.0328,103960.0,103950.0,2.65931355]
[1747184241327,0.0328,103960.0,103950.0,2.56449861]
[1747184241537,0.0328,103960.0,103950.0,2.65931355]
[1747184241835,0.0328,103960.0,103950.0,3.07181355]
[1747184242328,0.002,103960.0,103950.0,2.75412849]
[1747184242529,0.0308,103970.0,103960.0,0.192372]
[1747184242731,0.0308,103970.0,103960.0,0.71348694]
[1747184242933,0.0308,103970.0,103960.0,0.95576694]
[1747184243120,0.0308,103970.0,103960.0,1.11776694]
[1747184243326,0.0308,103970.0,103960.0,1.022952]
[1747184243527,0.0308,103970.0,103960.0,2.61776694]
[1747184244828,0.0312,103980.0,103970.0,0.1923535]
[1747184245136,0.0315,103980.0,103970.0,1.14778844]
[1747184248536,0.0624,103980.0,103970.0,1.56000844]
[1747184249035,0.0624,103980.0,103970.0,3.06000844]
[1747184249337,0.0624,103980.0,103970.0,2.82036844]
[1747184249534,0.0624,103980.0,103970.0,3.06504844]
[1747184249736,0.254735,103980.0,103970.0,2.82036844]
[1747184250036,0.254735,103980.0,103970.0,2.9701135]
[1747184250239,0.254735,103980.0,103970.0,2.8081135]
[1747184250742,0.254735,103980.0,103970.0,2.3956135]
[1747184251436,0.254735,103980.0,103970.0,2.49042844]
[1747184251633,0.254735,103980.0,103970.0,2.49010844]
[1747184253131,0.254735,103980.0,103970.0,2.3952935]
[1747184253331,0.254735,103980.0,103970.0,2.49010844]
[1747184254241,0.254735,103980.0,103970.0,2.3952935]
[1747184254444,0.254735,103980.0,103970.0,2.3624935]
[1747184255339,0.34954994,103980.0,103970.0,1.6923535]
[1747184255637,0.71034994,103980.0,103970.0,1.6923535]
[1747184255833,0.1923535,103970.0,103960.0,0.1923707]
[1747184256030,0.2880535,103970.0,103960.0,0.1923707]
[1747184256540,0.6488535,103970.0,103960.0,1.6923707]
[1747184259138,0.74366844,103970.0,103960.0,1.5]
[1747184259343,0.83985644,103970.0,103960.0,1.5]
[1747184259637,0.83985644,103970.0,103960.0,1.692372]
[1747184260027,0.83985644,103970.0,103950.0,0.1442907]
[1747184260234,0.71128694,103960.0,103950.0,0.3366644]
[1747184260537,0.71128694,103960.0,103950.0,1.8366644]
[1747184261126,0.616472,103960.0,103950.0,1.8366644]
[1747184263333,0.616472,103960.0,103950.0,1.788567]
[1747184263529,0.71128694,103960.0,103950.0,1.788567]
[1747184264737,0.0633,103960.0,103950.0,1.88338194]
[1747184264944,0.0633,103960.0,103950.0,2.245567]
[1747184265243,0.255672,103960.0,103950.0,2.14158194]
[1747184266039,0.255672,103960.0,103950.0,2.046767]
[1747184266231,0.255672,103960.0,103950.0,1.884767]
[1747184266432,0.255672,103960.0,103950.0,2.245567]
[1747184266632,0.255672,103960.0,103950.0,1.884767]
[1747184271144,0.255672,103960.0,103950.0,2.14158194]
[1747184272143,0.255672,103960.0,103950.0,1.97958194]
[1747184273549,0.0633,103960.0,103950.0,1.97958194]
[1747184274142,0.0325,103960.0,103950.0,2.50238194]
[1747184276350,0.0325,103960.0,103950.0,2.407567]
[1747184276544,0.0325,103960.0,103950.0,2.50238194]
[1747184281847,0.0632,103960.0,103950.0,2.50238194]
[1747184282249,0.0632,103960.0,103950.0,2.14158194]
[1747184282449,0.0632,103960.0,103950.0,2.50238194]
[1747184285258,0.255572,103960.0,103950.0,2.50238194]
[1747184286054,0.255572,103960.0,103950.0,2.407567]
[1747184286367,0.255572,103960.0,103950.0,2.50238194]
[1747184287056,0.287172,103960.0,103950.0,2.50238194]
[1747184287258,0.287172,103960.0,103950.0,2.34038194]
[1747184288253,0.287172,103960.0,103950.0,2.407567]
[1747184288453,0.287172,103960.0,103950.0,2.50238194]
[1747184289461,0.287172,103960.0,103950.0,2.14158194]
[1747184290264,0.255572,103960.0,103950.0,2.14158194]
[1747184290454,0.255572,103960.0,103950.0,2.28879563]
[1747184291966,0.255572,103960.0,103950.0,2.19398069]
[1747184292161,0.74308694,103960.0,103950.0,1.64721369]
[1747184292363,0.74308694,103960.0,103950.0,0.33960419]
[1747184293363,0.648272,103960.0,103950.0,0.33960419]
[1747184293565,0.74308694,103960.0,103950.0,0.33960419]
[1747184294057,0.74308694,103960.0,103950.0,0.1923905]
[1747184294560,0.99152694,103960.0,103950.0,0.1923905]
[1747184296773,0.896712,103960.0,103950.0,0.1923905]
[1747184296963,0.99152694,103960.0,103950.0,0.1923905]
[1747184297656,0.896712,103960.0,103950.0,0.1923905]
[1747184299060,0.896712,103960.0,103950.0,0.2238905]
[1747184300570,0.0951,103960.0,103950.0,0.71100544]
[1747184300764,0.0951,103960.0,103950.0,0.74190544]
[1747184300965,0.0632,103960.0,103950.0,0.83672038]
[1747184301170,0.0325,103960.0,103950.0,0.90390544]
[1747184302070,0.0325,103960.0,103950.0,2.40390544]
[1747184302974,0.0325,103960.0,103950.0,2.64238544]
[1747184305169,0.0325,103960.0,103950.0,2.78959913]
[1747184309784,0.0332,103970.0,103960.0,0.192372]
[1747184309984,0.0319,103970.0,103960.0,0.74248694]
[1747184310185,0.0319,103970.0,103960.0,0.90448694]
[1747184310383,0.0319,103970.0,103960.0,2.40448694]
[1747184313887,0.0637,103970.0,103960.0,2.40448694]
[1747184314077,0.0945,103970.0,103960.0,2.40448694]
[1747184317294,0.5852518,103980.0,103970.0,0.1923535]
[1747184317593,0.6485518,103980.0,103970.0,0.37826844]
[1747184317986,0.6485518,103980.0,103970.0,1.87826844]
[1747184318187,0.6485518,103980.0,103970.0,2.04026844]
[1747184318493,0.6485518,103980.0,103970.0,2.27414844]
[1747184318691,0.6485518,103980.0,103970.0,2.1793335]
[1747184319489,0.2877518,103980.0,103970.0,2.1793335]
[1747184321488,0.6485518,103980.0,103970.0,2.1793335]
[1747184326097,0.6485518,103980.0,103970.0,2.27414844]
[1747184326298,0.2877518,103980.0,103970.0,2.27414844]
[1747184329301,0.2877518,103980.0,103970.0,2.24151401]
[1747184331898,0.2877518,103980.0,103970.0,2.1793335]
[1747184332099,0.2877518,103980.0,103970.0,2.24151401]
[1747184333202,0.2877518,103980.0,103970.0,2.1793335]
[1747184335099,0.6485518,103980.0,103970.0,2.1793335]
[1747184336001,0.6485518,103980.0,103970.0,2.24151401]
[1747184344317,0.6485518,103980.0,103970.0,2.1491335]
[1747184345315,0.6485518,103980.0,103970.0,0.6491335]
[1747184345510,0.71073231,103980.0,103970.0,0.162]
[1747184345712,0.6485518,103980.0,103970.0,0.3543535]
[1747184345913,0.6485518,103980.0,103970.0,1.9182535]
[1747184350122,0.6485518,103980.0,103970.0,1.7562535]
[1747184351325,0.6485518,103980.0,103970.0,1.9182535]
[1747184352219,0.6485518,103980.0,103970.0,1.9512535]
[1747184352720,0.6485518,103980.0,103970.0,2.01343401]
[1747184353119,0.4562,103980.0,103970.0,2.01343401]
[1747184353321,0.0623,103980.0,103970.0,2.01343401]
[1747184353521,0.0321,103980.0,103970.0,2.01343401]
[1747184354834,0.224435,103980.0,103970.0,2.01343401]
[1747184355123,0.290035,103980.0,103970.0,2.01343401]
[1747184357328,0.290035,103980.0,103970.0,0.51343401]
[1747184360129,0.0977,103980.0,103970.0,0.51343401]
[1747184360526,0.257435,103980.0,103970.0,0.51343401]
[1747184364326,0.648835,103980.0,103970.0,0.51343401]
[1747184364527,0.648835,103980.0,103970.0,0.4512535]
[1747184364832,0.288035,103980.0,103970.0,0.4512535]
[1747184365031,0.648835,103980.0,103970.0,0.4512535]
[1747184367334,0.648835,103980.0,103970.0,0.51343401]
[1747184368243,0.648835,103980.0,103970.0,0.4512535]
[1747184380751,0.648835,103980.0,103970.0,0.6840135]
[1747184381254,0.648835,103980.0,103970.0,0.6510135]
[1747184394169,0.648835,103980.0,103970.0,0.6829135]
[1747184396767,0.648835,103980.0,103970.0,0.4182535]
[1747184397064,0.86937202,103980.0,103970.0,0.162]
[1747184397369,0.1923535,103970.0,103960.0,0.53464693]
[1747184397667,0.67923401,103970.0,103960.0,0.34227493]
[1747184397966,0.70973401,103970.0,103960.0,0.34227493]
[1747184398167,0.70973401,103970.0,103960.0,0.69664693]
[1747184398563,0.70973401,103970.0,103960.0,0.50158569]
[1747184399069,0.70973401,103970.0,103960.0,0.33958569]
[1747184399971,0.94225401,103970.0,103960.0,0.33958569]
[1747184400270,0.6475535,103970.0,103960.0,0.33958569]
[1747184400569,0.6475535,103970.0,103960.0,0.4980662]
[1747184400963,0.6475535,103970.0,103960.0,0.43588569]
[1747184402171,0.6475535,103970.0,103960.0,0.59788569]
[1747184402471,0.70973401,103970.0,103960.0,0.59788569]
[1747184402672,0.70973401,103970.0,103960.0,0.162]
[1747184402860,0.77191452,103970.0,103960.0,0.162]
[1747184403060,0.93391452,103970.0,103960.0,0.162]
[1747184403262,0.93391452,103970.0,103950.0,0.2885834]
[1747184403263,0.192372,103960.0,103950.0,0.2885834]
[1747184403463,0.70935251,103960.0,103950.0,0.3188834]
[1747184404167,0.647172,103960.0,103950.0,0.4808834]
[1747184404373,0.647172,103960.0,103950.0,0.54306391]
[1747184404667,0.254772,103960.0,103950.0,0.60516391]
[1747184404873,0.583172,103960.0,103950.0,0.60516391]
[1747184406677,0.583172,103960.0,103950.0,0.83744391]
[1747184406873,0.222372,103960.0,103950.0,0.83744391]
[1747184407274,0.03,103960.0,103950.0,1.19824391]
[1747184407669,0.2732573,103970.0,103960.0,0.192372]
[1747184407967,0.0319,103970.0,103960.0,0.74153302]
[1747184408271,0.31495606,103980.0,103970.0,0.1923535]
[1747184408469,0.34685606,103980.0,103970.0,0.58341401]
[1747184408668,0.37905606,103980.0,103970.0,0.58341401]
[1747184408875,0.37905606,103980.0,103970.0,2.08341401]
[1747184409074,0.37905606,103980.0,103970.0,2.1832335]
[1747184409665,0.37905606,103980.0,103970.0,2.24541401]
[1747184410666,0.37905606,103980.0,103970.0,2.1832335]
[1747184410867,0.37905606,103980.0,103970.0,2.24541401]
[1747184412262,0.73985606,103980.0,103970.0,2.24541401]
[1747184413576,0.73985606,103980.0,103970.0,2.1832335]
[1747184415277,0.73985606,103980.0,103970.0,1.9509535]
[1747184415480,0.73985606,103980.0,103970.0,2.01313401]
[1747184420376,0.6182506,103980.0,103970.0,2.01313401]
[1747184422874,0.00955472,103990.0,103970.0,1.73439702]
[1747184423177,0.4929,104000.0,103990.0,0.1923165]
[1747184423378,0.685198,104000.0,103990.0,1.75449701]
[1747184423582,0.685198,104000.0,103990.0,1.84759701]
[1747184423876,0.74737851,104000.0,103990.0,2.0173765]
[1747184424072,0.78007851,104000.0,103990.0,2.1793765]
[1747184424268,0.717898,104000.0,103990.0,2.1793765]
[1747184424872,0.7276182,104000.0,103990.0,2.1793765]
[1747184425680,0.7419068,104000.0,103990.0,2.1793765]
[1747184427384,0.7419068,104000.0,103990.0,2.27409774]
[1747184427575,0.5026202,104000.0,103990.0,2.27409774]
[1747184427774,0.102,104000.0,103990.0,2.27409774]
[1747184428582,0.1349,104000.0,103990.0,2.27409774]
[1747184432787,0.327198,104000.0,103990.0,2.27409774]
[1747184433083,0.327198,104000.0,103990.0,1.9474165]
[1747184433277,0.84661924,104000.0,103990.0,1.9240365]
[1747184433477,0.84661924,104000.0,103990.0,0.4240365]
[1747184433685,0.84661924,104000.0,103990.0,0.4556365]
[1747184434083,0.751898,104000.0,103990.0,1.9556365]
[1747184434786,0.751898,104000.0,103990.0,1.9240365]
[1747184436287,0.751898,104000.0,103990.0,1.7239165]
[1747184436489,0.751898,104000.0,103990.0,1.9555565]
[1747184437289,0.751898,104000.0,103990.0,2.1175565]
[1747184437490,0.751898,104000.0,103990.0,2.0859565]
[1747184437678,0.84661924,104000.0,103990.0,1.8543165]
[1747184437879,0.94277924,104000.0,103990.0,0.162]
[1747184438085,1.19277924,104000.0,103990.0,0.162]
[1747184438291,0.1923165,103990.0,103980.0,0.2884929]
[1747184438488,0.94301774,103990.0,103980.0,0.2884929]
[1747184438685,0.94301774,103990.0,103980.0,0.2404092]
[1747184438885,0.94301774,103990.0,103970.0,0.14721369]
[1747184438886,0.192335,103980.0,103970.0,0.14721369]
[1747184439188,0.74365624,103980.0,103970.0,0.33956719]
[1747184440094,0.93455348,103980.0,103970.0,0.14721369]
[1747184440284,0.93455348,103980.0,103970.0,0.33956719]
[1747184441184,0.83983224,103980.0,103970.0,0.33956719]
[1747184441593,0.74365624,103980.0,103970.0,0.33956719]
[1747184441789,0.648935,103980.0,103970.0,0.33956719]
[1747184441992,0.648935,103980.0,103970.0,0.46468843]
[1747184442291,0.648935,103980.0,103970.0,0.49708843]
[1747184442495,0.648935,103980.0,103970.0,0.40236719]
[1747184443190,0.648935,103980.0,103970.0,0.4171535]
[1747184443894,0.648935,103980.0,103970.0,0.3847535]
[1747184444082,0.74365624,103980.0,103970.0,0.162]
[1747184444286,0.1923535,103970.0,103960.0,0.3366358]
[1747184444488,0.6161535,103970.0,103960.0,0.3699358]
[1747184446096,0.6161535,103970.0,103960.0,0.5319358]
[1747184446306,0.71087474,103970.0,103960.0,0.162]
[1747184446499,0.71087474,103970.0,103960.0,0.354372]
[1747184447296,0.71087474,103970.0,103960.0,0.192372]
[1747184448290,0.6161535,103970.0,103960.0,0.192372]
[1747184448491,0.71087474,103970.0,103960.0,0.192372]
[1747184448788,0.94279474,103970.0,103960.0,0.192372]
[1747184456504,0.8480735,103970.0,103960.0,0.223072]
[1747184456702,0.8480735,103970.0,103960.0,0.284972]
[1747184458098,0.94279474,103970.0,103960.0,0.284972]
[1747184458899,0.8480735,103970.0,103960.0,0.284972]
[1747184459200,0.94279474,103970.0,103960.0,0.284972]
[1747184461110,0.94279474,103970.0,103960.0,0.446972]
[1747184461509,0.8480735,103970.0,103960.0,0.446972]
[1747184462113,0.5854535,103970.0,103960.0,0.446972]
[1747184462306,0.5854535,103970.0,103960.0,0.54169324]
[1747184462506,0.5854535,103970.0,103960.0,0.446972]
[1747184463303,0.68017474,103970.0,103960.0,0.446972]
[1747184463611,0.71047474,103970.0,103960.0,0.446972]
[1747184464819,0.6157535,103970.0,103960.0,0.446972]
[1747184465114,0.71047474,103970.0,103960.0,0.284972]
[1747184465313,0.6157535,103970.0,103960.0,0.284972]
[1747184465505,0.71047474,103970.0,103960.0,0.284972]
[1747184466110,0.71047474,103970.0,103960.0,0.446972]
[1747184466320,0.6157535,103970.0,103960.0,0.446972]
[1747184466812,0.3608,103970.0,103960.0,0.77273324]
[1747184467028,0.5531535,103970.0,103960.0,0.77273324]
[1747184467416,0.5531535,103970.0,103960.0,2.27273324]
[1747184468524,0.5839535,103970.0,103960.0,2.27273324]
[1747184471318,0.5531535,103970.0,103960.0,2.27273324]
[1747184472211,0.5861535,103970.0,103960.0,2.27273324]
[1747184475826,0.5861535,103970.0,103960.0,2.178012]
[1747184476318,0.5861535,103970.0,103960.0,2.27273324]
[1747184478227,0.5861535,103970.0,103960.0,2.178012]
[1747184478527,0.5861535,103970.0,103960.0,2.27273324]
[1747184481618,0.033,103970.0,103960.0,2.27273324]
[1747184482044,0.033,103970.0,103960.0,2.63353324]
[1747184482622,0.69908325,103990.0,103980.0,0.192335]
[1747184482819,0.73168325,103990.0,103980.0,0.51781624]
[1747184483018,0.76178325,103990.0,103980.0,0.57931624]
[1747184483218,0.76178325,103990.0,103980.0,0.74131624]
[1747184484129,0.76178325,103990.0,103980.0,2.24131624]
[1747184484526,0.76178325,103990.0,103980.0,2.146595]
[1747184484924,0.16057145,103990.0,103980.0,2.24131624]
[1747184485120,0.13047145,103990.0,103980.0,2.24131624]
[1747184485316,0.13047145,103990.0,103980.0,2.83283624]
[1747184485521,0.09787145,103990.0,103980.0,2.83283624]
[1747184485726,0.12817145,103990.0,103980.0,2.47203624]
[1747184487520,0.0303,103990.0,103980.0,2.47203624]
[1747184487828,0.2226165,103990.0,103980.0,2.47203624]
[1747184488029,0.0303,103990.0,103980.0,2.83283624]
[1747184488225,0.2226165,103990.0,103980.0,2.50253624]
[1747184488924,0.2226165,103990.0,103980.0,2.407815]
[1747184489429,0.2226165,103990.0,103980.0,2.50253624]
[1747184489621,0.2226165,103990.0,103980.0,2.407815]
[1747184489830,0.2849165,103990.0,103980.0,2.27165624]
[1747184496432,0.0926,103990.0,103980.0,2.27165624]
[1747184496628,0.2849165,103990.0,103980.0,2.176935]
[1747184496828,0.2849165,103990.0,103980.0,2.27165624]
[1747184498336,0.6457165,103990.0,103980.0,2.27165624]
[1747184501140,0.6457165,103990.0,103980.0,2.20995624]
[1747184501337,0.74043774,103990.0,103980.0,1.662]
[1747184501530,0.74043774,103990.0,103980.0,0.162]
[1747184501731,1.08660574,103990.0,103980.0,0.1121]
[1747184502134,0.192335,103980.0,103970.0,0.6048523]
[1747184502331,0.1923535,103970.0,103960.0,0.37328703]
[1747184502635,0.71197474,103970.0,103960.0,0.53465903]
[1747184504834,0.71197474,103970.0,103960.0,0.34228703]
[1747184505035,0.74227474,103970.0,103960.0,0.53465903]
[1747184505543,0.74227474,103970.0,103960.0,0.34228703]
[1747184506248,0.8095535,103970.0,103960.0,0.34228703]
[1747184506438,0.90427474,103970.0,103960.0,0.34228703]
[1747184507339,1.13471474,103970.0,103960.0,0.34228703]
[1747184507547,1.13471474,103970.0,103960.0,0.53465903]
[1747184507737,1.13471474,103970.0,103960.0,0.34228703]
[1747184508244,0.192372,103960.0,103950.0,0.3698676]
[1747184508448,0.616072,103960.0,103950.0,0.3698676]
[1747184510541,0.71079324,103960.0,103950.0,0.2736726]
[1747184510740,0.71079324,103960.0,103950.0,0.2404726]
[1747184510944,0.71079324,103960.0,103950.0,0.1923751]
[1747184511148,0.1923905,103950.0,103940.0,1.8218965]
[1747184511355,0.74201174,103950.0,103940.0,0.0333]
[1747184511647,0.74201174,103950.0,103940.0,0.225709]
[1747184513346,0.75633546,103950.0,103940.0,0.225709]
[1747184513550,0.74201174,103950.0,103940.0,0.225709]
[1747184515052,0.6472905,103950.0,103940.0,0.225709]
[1747184515349,0.74201174,103950.0,103940.0,0.225709]
[1747184517250,0.6472905,103950.0,103940.0,0.225709]
[1747184518554,0.66280875,103950.0,103940.0,0.225709]
[1747184520549,0.66280875,103950.0,103940.0,0.257209]
[1747184521750,0.75752999,103950.0,103940.0,0.225709]
[1747184522948,0.66280875,103950.0,103940.0,0.225709]
[1747184523955,0.66280875,103950.0,103940.0,0.257409]
[1747184530358,0.75752999,103950.0,103940.0,0.257409]
[1747184531464,0.66280875,103950.0,103940.0,0.257409]
[1747184532251,0.75752999,103950.0,103940.0,0.257409]
[1747184532965,0.75752999,103950.0,103940.0,0.225709]
[1747184533554,0.192409,103940.0,103930.0,0.01344553]
[1747184533761,0.68063024,103940.0,103930.0,0.2235275]
[1747184533969,0.71133024,103940.0,103930.0,0.2235275]
[1747184534264,0.616609,103940.0,103930.0,0.2235275]
[1747184534463,0.71133024,103940.0,103930.0,0.2235275]
[1747184534664,0.71133024,103940.0,103930.0,0.2550275]
[1747184535164,0.71133024,103940.0,103930.0,0.2560275]
[1747184535366,0.616609,103940.0,103930.0,0.2560275]
[1747184535565,0.71133024,103940.0,103930.0,0.2560275]
[1747184535765,0.94181024,103940.0,103930.0,0.2560275]
[1747184535965,0.847089,103940.0,103930.0,0.2560275]
[1747184536569,0.85657639,103940.0,103930.0,0.2560275]
[1747184536764,0.95129763,103940.0,103930.0,0.2560275]
[1747184537072,0.79317639,103940.0,103930.0,0.2560275]
[1747184537266,0.79317639,103940.0,103930.0,0.4180275]
[1747184538068,0.82337639,103940.0,103930.0,0.4180275]
[1747184538569,0.56269639,103940.0,103930.0,0.54344874]
[1747184538767,0.20189639,103940.0,103930.0,0.54344874]
[1747184539067,0.56269639,103940.0,103930.0,0.54344874]
[1747184539867,0.56269639,103940.0,103930.0,0.4487275]
[1747184540167,0.56269639,103940.0,103930.0,0.54344874]
[1747184540968,0.56269639,103940.0,103930.0,0.4487275]
[1747184543770,0.59469639,103940.0,103930.0,0.4487275]
[1747184543970,0.62739639,103940.0,103930.0,0.4487275]
[1747184544171,0.62739639,103940.0,103930.0,0.2867275]
[1747184545172,0.65839639,103940.0,103930.0,0.2867275]
[1747184546071,0.75311763,103940.0,103930.0,0.2245275]
[1747184547176,0.65839639,103940.0,103930.0,0.2245275]
[1747184547366,0.65839639,103940.0,103930.0,0.2561275]
[1747184548577,0.65839639,103940.0,103930.0,0.2883275]
[1747184552479,0.62739639,103940.0,103930.0,0.38304874]
[1747184553079,0.62739639,103940.0,103930.0,0.2883275]
[1747184553378,0.62739639,103940.0,103930.0,0.4503275]
[1747184554076,0.65889639,103940.0,103930.0,0.4503275]
[1747184556082,0.40298739,103940.0,103930.0,0.54504874]
[1747184556284,0.56269639,103940.0,103930.0,0.54504874]
[1747184557785,0.56269639,103940.0,103930.0,0.4503275]
[1747184557988,0.62789639,103940.0,103930.0,0.4503275]
[1747184559077,0.65809639,103940.0,103930.0,0.4503275]
[1747184559873,0.56269639,103940.0,103930.0,0.54504874]
[1747184560077,0.20189639,103940.0,103930.0,0.54504874]
[1747184560277,0.20189639,103940.0,103930.0,0.90584874]
[1747184560584,0.20189639,103940.0,103930.0,2.40584874]
[1747184560782,0.20189639,103940.0,103930.0,2.04504874]
[1747184560979,0.56269639,103940.0,103930.0,1.9503275]
[1747184561177,0.65389639,103940.0,103930.0,1.9503275]
[1747184562291,0.65389639,103940.0,103930.0,1.9181275]
[1747184563088,0.65389639,103940.0,103930.0,1.7561275]
[1747184563887,0.65389639,103940.0,103930.0,1.7245275]
[1747184564189,0.74861763,103940.0,103930.0,0.001]
[1747184564486,0.97897763,103940.0,103930.0,0.1934275]
[1747184564988,0.97897763,103940.0,103930.0,0.2247275]
[1747184565182,0.97897763,103940.0,103930.0,0.1934275]
[1747184567392,0.97897763,103940.0,103930.0,0.001]
[1747184567782,0.97897763,103940.0,103930.0,0.1934275]
[1747184568082,0.97897763,103940.0,103930.0,0.001]
[1747184568285,0.1924275,103930.0,103920.0,9e-08]
[1747184568600,0.1924461,103920.0,103910.0,0.31512886]
[1747184568780,1.03644858,103920.0,103910.0,0.31512886]
[1747184570183,1.19844858,103920.0,103910.0,0.31512886]
[1747184570588,1.19844858,103920.0,103910.0,0.31912886]
[1747184571183,1.10672734,103920.0,103910.0,0.31512886]
[1747184571691,1.10372734,103920.0,103910.0,0.31512886]
[1747184571879,1.10972734,103920.0,103910.0,0.31612886]
[1747184572382,1.10972734,103920.0,103910.0,0.001]
[1747184573392,1.14122734,103920.0,103910.0,0.2263646]
[1747184573984,1.14126734,103920.0,103910.0,0.2263646]
[1747184574190,0.97926734,103920.0,103910.0,0.2263646]
[1747184574490,0.8845461,103920.0,103910.0,0.2263646]
[1747184574685,0.97926734,103920.0,103910.0,0.2263646]
[1747184575792,1.07398858,103920.0,103910.0,0.1934646]
[1747184575994,0.97926734,103920.0,103910.0,0.001]
[1747184576193,0.97926734,103920.0,103910.0,0.1934646]
[1747184576693,0.97926734,103920.0,103910.0,0.2250646]
[1747184580196,0.8845461,103920.0,103910.0,0.2250646]
[1747184580398,0.8845461,103920.0,103910.0,0.38178584]
[1747184580695,0.5592461,103920.0,103910.0,0.38178584]
[1747184580991,0.5592461,103920.0,103910.0,1.88178584]
[1747184581203,0.006,103920.0,103910.0,2.04378584]
[1747184581384,0.006,103920.0,103910.0,2.40458584]
[1747184582293,0.006,103920.0,103910.0,2.75081784]
[1747184582593,0.006,103920.0,103910.0,3.48955908]
[1747184582789,0.006,103920.0,103910.0,3.39483784]
[1747184583790,0.1924286,103930.0,103920.0,0.1924461]
[1747184584085,0.60180739,103940.0,103930.0,0.1924275]
[1747184584295,0.3608,103940.0,103930.0,0.38144874]
[1747184584592,0.3608,103950.0,103940.0,0.192409]
[1747184584792,0.48503475,103960.0,103950.0,0.1923905]
[1747184585002,0.12423475,103960.0,103950.0,0.67841174]
[1747184585298,0.31660675,103960.0,103950.0,2.40421174]
[1747184585693,0.31660675,103960.0,103950.0,2.04341174]
[1747184586690,0.194372,103960.0,103950.0,1.7563]
[1747184586898,0.68029324,103960.0,103950.0,1.9486905]
[1747184587191,0.647472,103960.0,103950.0,1.9486905]
[1747184587999,0.648472,103960.0,103950.0,1.9486905]
[1747184588297,0.648472,103960.0,103950.0,1.7866905]
[1747184588503,0.3628,103960.0,103950.0,1.88141174]
[1747184588698,0.007,103960.0,103950.0,1.88141174]
[1747184588898,0.007,103960.0,103950.0,2.24221174]
[1747184589102,0.007,103960.0,103950.0,2.40421174]
[1747184589301,0.007,103960.0,103950.0,2.49893298]
[1747184589498,0.199372,103960.0,103950.0,2.04341174]
[1747184590499,0.555172,103960.0,103950.0,2.04341174]
[1747184590800,0.556172,103960.0,103950.0,2.04341174]
[1747184590999,0.556172,103960.0,103950.0,1.9486905]
[1747184591305,0.650372,103960.0,103950.0,1.9486905]
[1747184593093,0.650372,103960.0,103950.0,1.7563]
[1747184593294,0.74509324,103960.0,103950.0,1.5305]
[1747184593502,0.74509324,103960.0,103950.0,1.7228905]
[1747184594011,0.74509324,103960.0,103950.0,0.0305]
[1747184594304,0.192409,103940.0,103930.0,0.6530187]
[1747184594491,0.553209,103940.0,103930.0,2.2150187]
[1747184594697,0.584309,103940.0,103930.0,2.2150187]
[1747184594897,0.584309,103940.0,103930.0,0.7150187]
[1747184595190,0.1924275,103930.0,103920.0,0.6013549]
[1747184595391,0.2235275,103930.0,103920.0,2.2107657]
[1747184595599,0.2560275,103930.0,103920.0,2.2408657]
[1747184595800,0.6168275,103930.0,103920.0,1.8800657]
[1747184596205,0.6168275,103930.0,103920.0,1.7706549]
[1747184596999,0.63117442,103930.0,103920.0,0.2706549]
[1747184597405,0.63117442,103930.0,103920.0,0.2746549]
[1747184597700,0.63117442,103930.0,103920.0,0.0341]
[1747184597895,0.72589566,103930.0,103920.0,0.0341]
[1747184598100,0.95737566,103930.0,103920.0,0.004]
[1747184598503,0.1924461,103920.0,103910.0,1.93393787]
[1747184598705,0.6485461,103920.0,103910.0,0.28959147]
[1747184598906,0.74326734,103920.0,103910.0,0.2240646]
[1747184599106,0.90526734,103920.0,103910.0,0.2240646]
[1747184599913,0.8105461,103920.0,103910.0,0.0316]
[1747184600116,0.8105461,103920.0,103910.0,0.2240646]
[1747184601114,0.74626734,103920.0,103910.0,0.2240646]
[1747184601604,0.6515461,103920.0,103910.0,0.2240646]
[1747184603203,0.6515461,103920.0,103910.0,0.31878584]
[1747184603406,0.6515461,103920.0,103910.0,0.35018584]